bitfinex/quotes_BTCUSD_20251021
["timestamp","ask_amount","ask_price","bid_price","bid_amount"]
[1761027462263,0.18569988,108020.0,108010.0,0.3043057]
[1761027462484,0.18569988,108020.0,108010.0,0.30176803]
[1761027464327,0.00054899,108020.0,108010.0,0.30176803]
[1761027464499,0.02369285,108020.0,108010.0,0.30176803]
[1761027464688,0.02369285,108020.0,108010.0,0.39158704]
[1761027465327,0.02369285,108020.0,108010.0,0.30176803]
[1761027465775,0.02369285,108020.0,108010.0,0.42776932]
[1761027465981,0.00054899,108020.0,108010.0,0.76670469]
[1761027466483,0.00054899,108020.0,108010.0,0.79454323]
[1761027466689,0.00054899,108020.0,108010.0,0.38660786]
[1761027466882,0.00054899,108020.0,108010.0,0.88436224]
[1761027472125,0.00054899,108020.0,108010.0,1.29229761]
[1761027472285,0.00054899,108020.0,108010.0,0.88436224]
[1761027474733,0.00054899,108020.0,108010.0,1.29229761]
[1761027475758,0.00054899,108020.0,108010.0,1.29329761]
[1761027475955,1e-08,108020.0,108010.0,1.78149761]
[1761027476159,1e-08,108020.0,108010.0,1.78249761]
[1761027478078,1e-08,108020.0,108010.0,1.78149761]
[1761027478700,1e-08,108020.0,108010.0,1.78249761]
[1761027479059,1e-08,108020.0,108010.0,1.78245761]
[1761027479211,1e-08,108020.0,108010.0,1.37452224]
[1761027479617,1e-08,108020.0,108010.0,1.78245761]
[1761027487033,1e-08,108020.0,108010.0,2.02755761]
[1761027487716,1e-08,108020.0,108010.0,1.91099761]
[1761027487943,1e-08,108020.0,108010.0,1.58343996]
[1761027488147,1e-08,108020.0,108010.0,1.99137533]
[1761027488342,1e-08,108020.0,108010.0,2.02755761]
[1761027491565,1e-08,108020.0,108010.0,1.50306224]
[1761027491790,1e-08,108020.0,108010.0,1.27962224]
[1761027492011,1e-08,108020.0,108010.0,1.16306224]
[1761027492177,1e-08,108020.0,108010.0,1.27962224]
[1761027493191,1e-08,108020.0,108010.0,0.8891237]
[1761027493331,1e-08,108020.0,108010.0,1.0066837]
[1761027493530,1e-08,108020.0,108010.0,1.0056837]
[1761027493773,1e-08,108020.0,108010.0,1.41361907]
[1761027494092,1e-08,108020.0,108010.0,1.41461907]
[1761027494849,1e-08,108020.0,108010.0,1.4424535]
[1761027496770,1e-08,108020.0,108010.0,1.4404535]
[1761027497197,1e-08,108020.0,108010.0,1.4414535]
[1761027497949,1e-08,108020.0,108010.0,1.7814535]
[1761027498161,1e-08,108020.0,108010.0,1.7824535]
[1761027502144,1e-08,108020.0,108010.0,2.19038887]
[1761027502349,1e-08,108020.0,108010.0,1.7824535]
[1761027503728,1e-08,108020.0,108010.0,0.96658276]
[1761027503934,1e-08,108020.0,108010.0,0.91795813]
[1761027504399,1e-08,108020.0,108010.0,1.03451813]
[1761027507189,1e-08,108020.0,108010.0,1.4424535]
[1761027508013,1e-08,108020.0,108010.0,1.7824535]
[1761027508613,0.37835946,108060.0,108050.0,0.18509949]
[1761027508614,0.37655419,108060.0,108050.0,0.18509949]
[1761027508816,0.03670315,108060.0,108050.0,0.20722767]
[1761027510047,0.18510619,108050.0,108030.0,0.22218985]
[1761027510214,0.18510619,108050.0,108030.0,0.19435846]
[1761027510432,0.18511662,108040.0,108020.0,0.71881469]
[1761027510619,0.18511662,108040.0,108020.0,0.39148954]
[1761027510819,0.18513375,108030.0,108010.0,0.21524544]
[1761027511026,0.18513375,108030.0,108010.0,0.24308184]
[1761027511234,0.18513375,108030.0,108010.0,0.33176544]
[1761027511432,0.18513375,108030.0,108010.0,0.21524544]
[1761027511880,0.18513375,108030.0,108020.0,0.18515089]
[1761027512090,0.18513375,108030.0,108020.0,0.19789291]
[1761027512304,0.18513375,108030.0,108020.0,0.18515089]
[1761027512905,3.0,108030.0,108020.0,0.23684252]
[1761027513073,0.22221239,108040.0,108020.0,0.23684252]
[1761027514325,0.22035936,108040.0,108020.0,0.23684252]
[1761027514603,0.20827546,108030.0,108020.0,0.23684252]
[1761027514811,0.18513375,108030.0,108020.0,0.23684252]
[1761027515143,3.0,108030.0,108020.0,0.23684252]
[1761027515349,0.18513375,108030.0,108020.0,0.23684252]
[1761027515590,0.18513375,108030.0,108020.0,0.0540223]
[1761027515993,0.18513375,108030.0,108020.0,0.01439508]
[1761027516554,0.18513375,108030.0,108020.0,0.19954597]
[1761027516763,0.18513375,108030.0,108020.0,0.18748156]
[1761027517369,3.0,108030.0,108020.0,0.18748156]
[1761027517566,0.01711302,108030.0,108020.0,0.18748156]
[1761027517765,0.04025473,108030.0,108020.0,0.23940626]
[1761027519658,0.01711302,108030.0,108020.0,0.23940626]
[1761027520090,0.04025473,108030.0,108020.0,0.18748156]
[1761027521442,0.37709577,108040.0,108030.0,0.18513375]
[1761027521642,3.56224295,108040.0,108030.0,0.18513375]
[1761027522170,0.36783994,108040.0,108030.0,0.18513375]
[1761027522782,0.24555693,108060.0,108040.0,0.18510171]
[1761027522783,0.33834551,108060.0,108040.0,0.18510171]
[1761027523062,0.20823692,108050.0,108030.0,0.35678084]
[1761027523268,0.52509949,108050.0,108040.0,0.01133122]
[1761027523464,3.18512546,108040.0,108030.0,0.30169193]
[1761027523667,3.0,108040.0,108030.0,0.30169193]
[1761027524228,0.52509949,108050.0,108040.0,0.18511662]
[1761027524593,0.3545195,108050.0,108040.0,0.23379748]
[1761027524726,0.34,108050.0,108040.0,0.23379748]
[1761027525127,0.34,108050.0,108040.0,0.18511662]
[1761027527784,0.35451923,108050.0,108040.0,0.18511662]
[1761027530113,0.35451923,108050.0,108040.0,0.14811662]
[1761027530266,0.35451923,108050.0,108040.0,0.16098775]
[1761027530671,0.53961872,108050.0,108040.0,0.15044723]
[1761027530878,0.53961872,108050.0,108040.0,0.00233061]
[1761027536042,0.53961872,108050.0,108040.0,0.18744723]
[1761027536242,0.35451923,108050.0,108040.0,0.22470524]
[1761027536565,0.47103923,108050.0,108040.0,0.22470524]
[1761027537128,0.47103923,108050.0,108040.0,0.22470523]
[1761027537336,0.47103923,108050.0,108040.0,0.11844722]
[1761027537468,0.47103923,108050.0,108040.0,0.13035859]
[1761027537906,0.35451923,108050.0,108040.0,0.13035859]
[1761027539781,0.01451923,108050.0,108040.0,0.13035859]
[1761027540782,0.01451923,108050.0,108040.0,0.13035858]
[1761027541195,0.01451923,108050.0,108040.0,0.21752316]
[1761027541398,0.01451923,108050.0,108040.0,0.11844721]
[1761027541595,0.01451923,108050.0,108040.0,0.12089278]
[1761027542154,0.49322315,108060.0,108050.0,0.18509949]
[1761027542357,0.49322315,108060.0,108050.0,0.18743007]
[1761027542790,0.00014896,108060.0,108050.0,0.59538437]
[1761027543000,0.03830248,108060.0,108050.0,0.59538435]
[1761027543207,0.03830248,108060.0,108050.0,0.59538434]
[1761027543405,0.00014896,108060.0,108050.0,0.68520334]
[1761027543615,0.00014896,108060.0,108050.0,0.27724903]
[1761027543768,0.00014896,108060.0,108050.0,0.27724902]
[1761027544179,0.03729329,108060.0,108050.0,0.27724902]
[1761027544345,0.00014896,108060.0,108050.0,0.27724902]
[1761027544950,0.00014896,108060.0,108050.0,0.27724901]
[1761027545266,0.03707865,108060.0,108050.0,0.27724901]
[1761027545680,0.00014896,108060.0,108050.0,0.36706802]
[1761027546085,0.00014896,108060.0,108050.0,0.77502231]
[1761027546263,0.03771504,108060.0,108050.0,0.27724899]
[1761027546460,0.00014896,108060.0,108050.0,0.27724899]
[1761027546851,0.03820457,108060.0,108050.0,0.27724899]
[1761027547263,0.00014896,108060.0,108050.0,0.27724899]
[1761027547432,0.00014896,108060.0,108050.0,0.39376898]
[1761027547627,0.00014896,108060.0,108050.0,0.39376897]
[1761027547859,0.00014896,108060.0,108050.0,0.48358798]
[1761027548472,0.00014896,108060.0,108050.0,0.48358797]
[1761027548698,0.03844934,108060.0,108050.0,0.48358797]
[1761027548900,0.00014896,108060.0,108050.0,0.80172326]
[1761027549110,0.00014896,108060.0,108050.0,0.80172325]
[1761027549548,0.00014896,108060.0,108050.0,0.80172324]
[1761027550166,0.00014896,108060.0,108050.0,0.39376893]
[1761027551654,0.00014896,108060.0,108050.0,0.39376892]
[1761027552433,0.00014896,108060.0,108050.0,0.80172322]
[1761027552662,0.00014896,108060.0,108050.0,0.89154223]
[1761027552815,0.00014896,108060.0,108050.0,0.89154222]
[1761027553246,0.00014896,108060.0,108050.0,0.9277245]
[1761027553445,0.00014896,108060.0,108050.0,0.92772449]
[1761027554078,0.00014896,108060.0,108050.0,0.51977018]
[1761027554274,0.00014896,108060.0,108050.0,0.83790547]
[1761027554697,0.00014896,108060.0,108050.0,0.83790546]
[1761027554896,0.00014896,108060.0,108050.0,0.36095116]
[1761027555098,0.00014896,108060.0,108050.0,0.36095115]
[1761027556081,0.00014896,108060.0,108050.0,0.36095114]
[1761027556292,0.00014896,108060.0,108050.0,0.44945335]
[1761027557155,0.00014896,108060.0,108050.0,0.36095114]
[1761027557562,0.00014896,108060.0,108050.0,0.36095113]
[1761027560012,0.00014896,108060.0,108050.0,0.36095112]
[1761027561559,0.00014896,108060.0,108050.0,0.36095111]
[1761027562147,0.00014896,108060.0,108050.0,0.29195111]
[1761027562318,0.00014896,108060.0,108050.0,0.37355331]
[1761027563293,0.00014896,108060.0,108050.0,0.3735533]
[1761027563739,0.00014896,108060.0,108050.0,0.7815076]
[1761027564121,0.00014896,108060.0,108050.0,0.25576882]
[1761027564498,0.00014896,108060.0,108050.0,0.25576881]
[1761027566067,0.00014896,108060.0,108050.0,0.7897244]
[1761027566278,0.00014896,108060.0,108050.0,0.78972438]
[1761027566472,0.00014896,108060.0,108050.0,0.78972437]
[1761027566674,0.00014896,108060.0,108050.0,0.87954337]
[1761027567154,0.00014896,108060.0,108050.0,0.87954336]
[1761027567559,0.00014896,108060.0,108050.0,0.87954335]
[1761027567957,0.00014896,108060.0,108050.0,0.87954334]
[1761027568138,0.00014896,108060.0,108050.0,0.87954333]
[1761027568772,0.00014896,108060.0,108050.0,0.87954332]
[1761027569116,0.00014896,108060.0,108050.0,0.81054332]
[1761027569319,0.00014896,108060.0,108050.0,0.81054331]
[1761027570111,0.00014896,108060.0,108050.0,0.8115433]
[1761027570476,0.00014896,108060.0,108050.0,0.81154329]
[1761027571008,0.00014896,108060.0,108050.0,0.81254329]
[1761027571209,0.00014896,108060.0,108050.0,0.81254328]
[1761027572487,0.00014896,108060.0,108050.0,0.81254327]
[1761027573610,0.00014896,108060.0,108050.0,0.81254326]
[1761027574217,0.00014896,108060.0,108050.0,0.81254325]
[1761027576410,0.00014896,108060.0,108050.0,0.92864273]
[1761027576633,0.00014896,108060.0,108050.0,1.33659703]
[1761027576873,0.00014896,108060.0,108050.0,1.33659701]
[1761027577104,0.00014896,108060.0,108050.0,1.336597]
[1761027577545,0.00014896,108060.0,108050.0,1.33659699]
[1761027577773,1e-08,108070.0,108060.0,0.56126464]
[1761027577994,1e-08,108070.0,108060.0,1.48336308]
[1761027578213,1e-08,108070.0,108060.0,1.48336306]
[1761027578434,1e-08,108070.0,108060.0,1.59988303]
[1761027578646,1e-08,108070.0,108060.0,1.59988302]
[1761027578895,1e-08,108070.0,108060.0,1.59988301]
[1761027579111,1e-08,108070.0,108060.0,1.60088301]
[1761027579337,1e-08,108070.0,108060.0,1.601883]
[1761027579569,1e-08,108070.0,108060.0,1.60188299]
[1761027579997,0.0002,108090.0,108080.0,0.22123039]
[1761027580000,0.0002,108090.0,108080.0,0.62918469]
[1761027580222,0.0002,108090.0,108080.0,0.915738]
[1761027580443,0.0002,108090.0,108080.0,0.91573799]
[1761027580678,0.0002,108090.0,108080.0,0.91573798]
[1761027580902,0.0002,108090.0,108080.0,1.32247944]
[1761027581126,0.0002,108090.0,108080.0,1.32247943]
[1761027581300,0.0002,108090.0,108080.0,1.32247942]
[1761027581519,0.0002,108090.0,108080.0,1.32247941]
[1761027581700,0.0002,108090.0,108080.0,1.3234794]
[1761027582841,0.0002,108090.0,108080.0,1.32347939]
[1761027583050,0.0002,108090.0,108080.0,1.32447939]
[1761027583422,0.0002,108090.0,108080.0,1.26847939]
[1761027583819,0.0002,108090.0,108080.0,1.26847938]
[1761027584043,0.0002,108090.0,108080.0,1.26847937]
[1761027584290,0.0002,108090.0,108080.0,1.26847936]
[1761027584512,0.0002,108090.0,108080.0,1.26847935]
[1761027584731,0.0002,108090.0,108080.0,1.29629796]
[1761027584946,0.0002,108090.0,108080.0,1.29629795]
[1761027585178,0.0002,108090.0,108080.0,1.44449794]
[1761027585395,0.0002,108090.0,108080.0,1.44449793]
[1761027585617,0.0002,108090.0,108080.0,1.44449792]
[1761027586291,0.0002,108090.0,108080.0,1.44449791]
[1761027586527,0.0002,108090.0,108080.0,1.4444979]
[1761027586970,0.0002,108090.0,108080.0,1.44449789]
[1761027587672,0.0002,108090.0,108080.0,1.44449787]
[1761027588087,0.0002,108090.0,108080.0,1.44449786]
[1761027588736,0.0002,108090.0,108080.0,1.44449785]
[1761027589803,0.0002,108090.0,108080.0,0.62980208]
[1761027590022,0.0002,108090.0,108080.0,1.44449784]
[1761027590454,0.0002,108090.0,108080.0,1.44449783]
[1761027591328,0.0002,108090.0,108080.0,1.44449781]
[1761027591788,0.0002,108090.0,108080.0,1.44349781]
[1761027592010,0.0002,108090.0,108080.0,1.44249781]
[1761027592238,0.0002,108090.0,108080.0,1.4434978]
[1761027592462,0.0002,108090.0,108080.0,1.4444978]
[1761027592711,0.0002,108090.0,108080.0,1.44449779]
[1761027592935,0.0002,108090.0,108080.0,1.44449778]
[1761027593606,0.0002,108090.0,108080.0,1.44449777]
[1761027594091,1e-08,108090.0,108080.0,1.85184563]
[1761027594286,1e-08,108090.0,108080.0,1.85184562]
[1761027594510,0.18861139,108130.0,108080.0,1.8518456]
[1761027594735,0.00049645,108130.0,108120.0,0.18497965]
[1761027595436,0.03206524,108130.0,108120.0,0.18497965]
[1761027595648,0.00049645,108130.0,108120.0,0.53132753]
[1761027595854,0.00049645,108130.0,108120.0,0.12397965]
[1761027596063,0.00049645,108130.0,108120.0,0.13595551]
[1761027596488,0.03194057,108130.0,108120.0,0.13595551]
[1761027597130,0.37194057,108130.0,108120.0,0.13595551]
[1761027598265,0.37194057,108130.0,108120.0,0.22577452]
[1761027598488,0.03194057,108130.0,108120.0,0.62114654]
[1761027598696,0.03194057,108130.0,108120.0,0.21379866]
[1761027598901,0.03194057,108130.0,108120.0,0.53132753]
[1761027599162,0.00049645,108130.0,108120.0,0.65732882]
[1761027599835,0.41018822,108140.0,108130.0,0.18496254]
[1761027600004,0.18508341,108140.0,108130.0,0.18496254]
[1761027600144,0.00013787,108140.0,108130.0,0.18496254]
[1761027600356,0.00013787,108140.0,108130.0,0.27478155]
[1761027600754,0.03190142,108140.0,108130.0,0.27478155]
[1761027602807,0.00013787,108140.0,108130.0,0.79275171]
[1761027604442,0.00013787,108140.0,108130.0,1.22790531]
[1761027604820,0.00013787,108140.0,108130.0,0.82055743]
[1761027606085,0.00013787,108140.0,108130.0,1.22790531]
[1761027606239,0.00013787,108140.0,108130.0,1.31772432]
[1761027606641,0.00013787,108140.0,108130.0,1.80592432]
[1761027607072,0.0002,108160.0,108150.0,0.18492834]
[1761027607280,0.0002,108160.0,108130.0,0.27083539]
[1761027607281,0.18511165,108160.0,108130.0,0.27083539]
[1761027607610,0.18511124,108160.0,108150.0,0.18492834]
[1761027607819,0.18511124,108160.0,108140.0,0.70876471]
[1761027608044,0.18511124,108160.0,108150.0,0.01306136]
[1761027608251,0.18511124,108160.0,108150.0,0.1979897]
[1761027608450,0.18511124,108160.0,108150.0,0.18492834]
[1761027608655,0.0002,108160.0,108150.0,0.18492834]
[1761027608859,0.20362573,108160.0,108150.0,0.18492834]
[1761027609030,0.18511124,108160.0,108150.0,0.26281268]
[1761027609643,0.18511124,108160.0,108150.0,0.24481268]
[1761027609848,0.0002,108160.0,108150.0,0.24481268]
[1761027611296,0.0002,108160.0,108150.0,0.28099496]
[1761027611633,0.0002,108160.0,108150.0,0.77816185]
[1761027611857,0.0002,108160.0,108150.0,0.37081397]
[1761027612081,0.0002,108160.0,108150.0,0.77816185]
[1761027613309,0.0002,108160.0,108150.0,0.70027751]
[1761027613434,0.0002,108160.0,108150.0,1.47907762]
[1761027613793,0.0002,108160.0,108150.0,1.50687499]
[1761027614710,0.0002,108160.0,108150.0,1.50787499]
[1761027614938,0.0002,108160.0,108150.0,1.10181469]
[1761027615159,0.0002,108160.0,108150.0,1.15989389]
[1761027615371,0.0002,108160.0,108150.0,1.27689389]
[1761027615587,0.0002,108160.0,108150.0,1.68424177]
[1761027616396,0.0002,108160.0,108150.0,1.27689389]
[1761027616614,0.0002,108160.0,108150.0,0.86954601]
[1761027616816,0.0002,108160.0,108150.0,0.322727]
[1761027616978,0.0002,108160.0,108150.0,0.41192963]
[1761027617179,0.0002,108160.0,108150.0,0.81927751]
[1761027617796,0.0002,108160.0,108150.0,1.22662539]
[1761027617948,0.0002,108160.0,108150.0,0.41192963]
[1761027618173,0.0002,108160.0,108150.0,1.29253368]
[1761027618820,0.0002,108160.0,108150.0,1.63253368]
[1761027619483,0.0002,108160.0,108150.0,0.70083792]
[1761027619656,0.0002,108160.0,108150.0,0.88755447]
[1761027619892,0.0002,108160.0,108150.0,0.77051446]
[1761027620103,0.0002,108160.0,108150.0,0.88755445]
[1761027620251,0.0002,108160.0,108150.0,0.88755444]
[1761027620450,0.0002,108160.0,108150.0,0.88755443]
[1761027620852,0.0002,108160.0,108150.0,0.88755442]
[1761027621447,0.0002,108160.0,108150.0,0.88755441]
[1761027622121,0.0002,108160.0,108150.0,1.63490229]
[1761027622302,0.0002,108160.0,108150.0,1.63490226]
[1761027622507,0.0002,108160.0,108150.0,1.22755436]
[1761027622709,0.0002,108160.0,108150.0,1.22755435]
[1761027622925,0.0002,108160.0,108150.0,1.22755434]
[1761027623142,0.0002,108160.0,108150.0,1.22767433]
[1761027623346,0.0002,108160.0,108150.0,1.22767432]
[1761027623561,0.0002,108160.0,108150.0,1.22767431]
[1761027623768,0.0002,108160.0,108150.0,1.2276743]
[1761027623974,0.0002,108160.0,108150.0,0.82032642]
[1761027624321,0.0002,108160.0,108150.0,1.2276743]
[1761027624541,0.0002,108160.0,108150.0,1.22767429]
[1761027624711,0.0002,108160.0,108150.0,1.22767428]
[1761027625114,0.0002,108160.0,108150.0,1.22767427]
[1761027625608,0.0002,108160.0,108150.0,1.22767426]
[1761027626138,0.0002,108160.0,108150.0,1.22767425]
[1761027626827,0.0002,108160.0,108150.0,1.22767424]
[1761027627402,0.0002,108160.0,108150.0,1.25547311]
[1761027627544,0.0002,108160.0,108150.0,1.66282098]
[1761027627755,0.0002,108160.0,108150.0,1.66282097]
[1761027628273,0.0002,108160.0,108150.0,1.66282096]
[1761027628480,0.0002,108160.0,108150.0,1.66282095]
[1761027628862,0.0002,108160.0,108150.0,1.66282094]
[1761027629613,0.0002,108160.0,108150.0,1.66282093]
[1761027629990,0.0002,108160.0,108150.0,1.66282091]
[1761027631375,0.0002,108160.0,108150.0,1.6628209]
[1761027631527,0.0002,108160.0,108150.0,1.66282089]
[1761027631729,0.0002,108160.0,108150.0,1.66282088]
[1761027632140,0.0002,108160.0,108150.0,1.66282087]
[1761027632348,0.0002,108160.0,108150.0,1.66182087]
[1761027632710,0.0002,108160.0,108150.0,1.81002087]
[1761027633041,0.0002,108160.0,108150.0,1.81002086]
[1761027633266,0.0002,108160.0,108150.0,1.80902085]
[1761027633469,0.0002,108160.0,108150.0,1.81002085]
[1761027633868,0.0002,108160.0,108150.0,1.81002084]
[1761027634082,0.0002,108160.0,108150.0,1.81002083]
[1761027634474,0.0002,108160.0,108150.0,0.87916507]
[1761027634672,0.0002,108160.0,108150.0,1.40379294]
[1761027634990,0.0002,108160.0,108150.0,1.40379293]
[1761027636293,0.0002,108160.0,108150.0,1.40379292]
[1761027637333,0.0002,108160.0,108150.0,1.40379291]
[1761027637987,0.0002,108160.0,108150.0,1.4037929]
[1761027638190,0.0002,108160.0,108150.0,1.2865129]
[1761027638404,0.0002,108160.0,108150.0,1.40375289]
[1761027638855,0.0002,108160.0,108150.0,1.40375288]
[1761027639727,0.0002,108160.0,108150.0,1.40375287]
[1761027640425,0.0002,108160.0,108150.0,1.40375286]
[1761027641096,0.0002,108160.0,108150.0,1.40275285]
[1761027641272,0.0002,108160.0,108150.0,1.40175285]
[1761027641454,0.0002,108160.0,108150.0,1.40275285]
[1761027641635,0.0002,108160.0,108150.0,1.40375285]
[1761027642022,0.0002,108160.0,108150.0,1.81110073]
[1761027642222,0.0002,108160.0,108150.0,1.81110072]
[1761027642872,0.0002,108160.0,108150.0,1.80997603]
[1761027643261,0.0002,108160.0,108150.0,1.80997602]
[1761027643668,0.0002,108160.0,108150.0,1.40319048]
[1761027644167,0.0002,108160.0,108150.0,1.25499048]
[1761027644367,0.0002,108160.0,108150.0,1.25499047]
[1761027644638,0.0002,108160.0,108150.0,1.2271916]
[1761027645384,0.0002,108160.0,108150.0,1.63397713]
[1761027645586,0.0002,108160.0,108150.0,1.63397712]
[1761027645791,0.0002,108160.0,108150.0,1.63397711]
[1761027646400,0.0002,108160.0,108150.0,1.6339771]
[1761027646640,0.0002,108160.0,108150.0,1.6329771]
[1761027647036,0.0002,108160.0,108150.0,1.6339771]
[1761027647250,0.0002,108160.0,108150.0,1.63297709]
[1761027647701,0.0002,108160.0,108150.0,1.63397708]
[1761027648771,0.0002,108160.0,108150.0,1.63397707]
[1761027649754,0.0002,108160.0,108150.0,2.0407626]
[1761027649755,1e-08,108160.0,108150.0,2.0407626]
[1761027649922,1e-08,108160.0,108150.0,2.06076256]
[1761027650131,1e-08,108160.0,108150.0,2.08855552]
[1761027650343,1e-08,108160.0,108150.0,1.68176997]
[1761027650548,1e-08,108160.0,108150.0,1.68176996]
[1761027650911,1e-08,108160.0,108150.0,1.67976996]
[1761027651347,1e-08,108160.0,108150.0,2.08955549]
[1761027651547,1e-08,108160.0,108150.0,1.68276994]
[1761027652245,1e-08,108160.0,108150.0,1.68176994]
[1761027652455,1e-08,108160.0,108150.0,1.68376993]
[1761027652851,1e-08,108160.0,108150.0,0.86819885]
[1761027652983,1e-08,108160.0,108150.0,1.68176993]
[1761027653179,1e-08,108160.0,108150.0,1.68176992]
[1761027653643,1e-08,108160.0,108150.0,1.68376992]
[1761027654823,1e-08,108160.0,108150.0,1.68376991]
[1761027656298,1e-08,108160.0,108150.0,1.83196991]
[1761027656503,1e-08,108160.0,108150.0,1.8319699]
[1761027657622,1e-08,108160.0,108150.0,2.23875544]
[1761027657821,0.05652483,108210.0,108200.0,0.18484288]
[1761027658060,0.05666254,108210.0,108200.0,0.74949693]
[1761027659331,0.05666254,108210.0,108200.0,0.83931594]
[1761027659528,0.05666254,108210.0,108200.0,0.87549822]
[1761027660970,0.05666254,108210.0,108200.0,1.02369822]
[1761027661545,0.05666254,108210.0,108200.0,1.43048376]
[1761027661849,0.05666254,108210.0,108200.0,1.45768891]
[1761027661973,1e-08,108210.0,108200.0,1.79768891]
[1761027662627,1e-08,108210.0,108200.0,1.79868891]
[1761027662830,1e-08,108210.0,108200.0,1.65048891]
[1761027663031,0.18474043,108260.0,108250.0,0.18475459]
[1761027663246,0.00913602,108260.0,108250.0,0.18475459]
[1761027663565,0.05974616,108260.0,108250.0,0.18475459]
[1761027663772,0.24448659,108260.0,108250.0,0.1847575]
[1761027663975,0.22139404,108260.0,108250.0,0.1847575]
[1761027664387,0.21275399,108260.0,108240.0,0.30205457]
[1761027664587,0.21275399,108260.0,108240.0,0.26002037]
[1761027664784,0.20775411,108260.0,108250.0,0.1847575]
[1761027664993,0.02301356,108260.0,108250.0,0.1847575]
[1761027665195,0.01449322,108270.0,108260.0,0.18474043]
[1761027665196,0.03758364,108270.0,108260.0,0.18474043]
[1761027665407,0.04636186,108270.0,108260.0,0.18474043]
[1761027665608,0.01464198,108270.0,108260.0,0.59152597]
[1761027665786,3.0,108290.0,108280.0,0.18470631]
[1761027665994,0.03542798,108290.0,108280.0,0.18470631]
[1761027666205,0.22647087,108290.0,108280.0,0.18470631]
[1761027666410,0.22011724,108290.0,108270.0,0.19395779]
[1761027666610,0.18472337,108270.0,108240.0,0.0752473]
[1761027666820,0.19109406,108260.0,108230.0,0.12549554]
[1761027667029,0.18523689,108260.0,108240.0,0.61003316]
[1761027667231,0.26427871,108260.0,108230.0,0.12549554]
[1761027667467,0.25792508,108260.0,108240.0,0.70895709]
[1761027667660,0.25792508,108260.0,108240.0,0.38746473]
[1761027667868,0.00635363,108250.0,108240.0,0.38746473]
[1761027668070,0.185236,108260.0,108250.0,0.1847575]
[1761027668271,0.00049557,108260.0,108250.0,0.1847575]
[1761027668684,0.525236,108260.0,108250.0,0.1847575]
[1761027669014,0.34049557,108260.0,108250.0,0.1847575]
[1761027669363,0.525236,108260.0,108250.0,0.1847575]
[1761027669984,0.525236,108260.0,108250.0,0.001]
[1761027670960,0.525236,108260.0,108250.0,0.01947575]
[1761027671325,0.34049557,108260.0,108250.0,0.20423325]
[1761027671544,0.00049557,108260.0,108250.0,0.71854433]
[1761027671930,0.00049557,108260.0,108250.0,0.71754433]
[1761027672126,0.00049557,108260.0,108250.0,0.31075879]
[1761027672540,0.00049557,108260.0,108250.0,0.71754433]
[1761027674039,0.525236,108260.0,108240.0,0.18476531]
[1761027674209,0.525236,108260.0,108250.0,0.13579575]
[1761027674657,0.525236,108260.0,108250.0,0.32055325]
[1761027674846,0.00049557,108260.0,108250.0,0.3020775]
[1761027675066,0.185236,108260.0,108250.0,0.3020775]
[1761027675423,0.185236,108260.0,108250.0,0.11732]
[1761027675633,0.185236,108260.0,108250.0,0.13579575]
[1761027675837,0.185236,108260.0,108250.0,0.32055325]
[1761027676150,0.185236,108260.0,108250.0,0.3020775]
[1761027676357,0.185236,108260.0,108250.0,0.11732]
[1761027676704,0.185236,108260.0,108250.0,0.13579575]
[1761027677042,0.185236,108260.0,108250.0,0.32055325]
[1761027677243,0.185236,108260.0,108250.0,0.3020775]
[1761027677440,0.00049557,108260.0,108250.0,0.3020775]
[1761027677647,0.0068492,108260.0,108240.0,0.27458432]
[1761027677846,0.19159083,108260.0,108250.0,0.13575575]
[1761027678049,0.1852372,108260.0,108250.0,0.13575575]
[1761027678705,0.1847575,108250.0,108240.0,0.18477453]
[1761027678923,0.1852372,108260.0,108240.0,0.30201453]
[1761027679144,0.1852372,108260.0,108240.0,0.18477453]
[1761027679385,0.1852372,108260.0,108240.0,0.30201453]
[1761027681675,0.1852372,108260.0,108250.0,0.1847575]
[1761027682873,0.00049557,108260.0,108250.0,0.1847575]
[1761027683425,0.00049557,108260.0,108250.0,0.59154304]
[1761027684019,0.00049557,108260.0,108250.0,0.1847575]
[1761027684221,0.00049557,108260.0,108250.0,0.71754433]
[1761027684601,0.00049557,108260.0,108250.0,0.31075879]
[1761027684846,0.00049557,108260.0,108250.0,0.71754433]
[1761027685040,0.00049557,108260.0,108250.0,0.31075879]
[1761027686367,0.00049557,108260.0,108250.0,0.22093978]
[1761027686567,0.00049557,108260.0,108250.0,0.33813978]
[1761027687903,0.00049557,108260.0,108250.0,0.42795879]
[1761027688101,0.00049557,108260.0,108250.0,0.33813978]
[1761027690009,0.00049557,108260.0,108250.0,0.22093978]
[1761027690220,0.00049557,108260.0,108250.0,0.33809978]
[1761027691926,0.00049557,108260.0,108250.0,0.48629978]
[1761027692334,0.00049557,108260.0,108250.0,0.36913978]
[1761027692659,0.19158963,108260.0,108250.0,0.4500775]
[1761027692863,0.185236,108260.0,108250.0,0.4500775]
[1761027693966,0.185236,108260.0,108250.0,0.1482]
[1761027694164,0.22223195,108260.0,108250.0,0.4500775]
[1761027694468,0.185236,108260.0,108250.0,0.4500775]
[1761027694694,0.00049557,108260.0,108250.0,0.48625978]
[1761027694914,0.185236,108260.0,108250.0,0.48625978]
[1761027695116,0.185236,108260.0,108250.0,0.1482]
[1761027695293,0.185236,108260.0,108250.0,0.28379575]
[1761027695502,0.185236,108260.0,108250.0,0.26528]
[1761027697418,0.185236,108260.0,108250.0,0.1482]
[1761027697613,0.185236,108260.0,108220.0,0.1871349]
[1761027697614,0.18479164,108230.0,108220.0,0.1871349]
[1761027697837,0.18477843,108240.0,108220.0,0.27695481]
[1761027698040,0.18477843,108240.0,108230.0,0.30191164]
[1761027698465,0.5743693,108240.0,108220.0,0.00232707]
[1761027698702,0.5743693,108240.0,108220.0,0.32273666]
[1761027698703,0.19114527,108230.0,108220.0,0.32273666]
[1761027699002,0.18479164,108230.0,108220.0,0.18813578]
[1761027699168,0.18479164,108230.0,108220.0,0.32373665]
[1761027699329,0.18479164,108230.0,108220.0,0.30525577]
[1761027699530,0.18479164,108230.0,108220.0,0.30425577]
[1761027700150,0.18479164,108230.0,108220.0,0.30425576]
[1761027700534,0.20140979,108230.0,108220.0,0.30425576]
[1761027701589,0.2789877,108230.0,108220.0,0.00232703]
[1761027701812,3.6189877,108230.0,108220.0,0.00232703]
[1761027702015,3.55131606,108230.0,108220.0,0.18713575]
[1761027702214,0.35661815,108230.0,108220.0,0.18713575]
[1761027702412,0.01661815,108230.0,108220.0,0.18713575]
[1761027702682,0.19114527,108230.0,108220.0,0.00232702]
[1761027702936,0.18479164,108230.0,108220.0,0.18713574]
[1761027703483,0.20123559,108230.0,108220.0,0.18713574]
[1761027703886,0.29050808,108230.0,108220.0,0.12813574]